{"text_format":"1","workbook":"xlsx","n_sheets":1,"sheets":["給与支払報告書"],"not_rendered":{"charts":0,"images":0,"macros":0,"external_links":0,"defined_names":1,"comments":0,"pivot_tables":0},"unopened":[],"bounds":{"document_bytes":16777216,"sheet_cells":100000,"rows_first":2000,"rows_last":500,"rows_between":2000,"halvings":0,"cell_chars":16384,"cell_head_chars":4096},"cells_cut":0,"cells_raw":0,"read":"whole","date_system":"1900"}

{"sheet":"給与支払報告書","index":0,"n_rows":179,"n_cols":239,"rows_kept":179,"cut":false,"hidden":false,"merged":[[118,9,118,14],[118,15,118,17],[118,18,121,37],[118,39,118,40],[118,41,121,45],[118,224,121,228],[119,202,121,205],[96,3,99,114],[96,128,99,239],[100,192,100,203],[102,192,103,202],[100,79,100,114],[101,67,101,78],[102,67,103,77],[104,67,106,70],[104,192,106,195],[119,77,121,80],[119,128,121,133],[119,134,121,139],[118,46,121,47],[118,93,121,96],[118,97,121,98],[118,196,121,199],[119,15,121,17],[118,77,118,80],[118,81,121,84],[118,99,121,103],[118,134,118,139],[119,9,121,14],[116,212,117,223],[101,192,101,238],[100,13,106,66],[100,138,106,191],[114,166,115,205],[114,212,115,230],[115,3,116,14],[115,15,117,17],[116,41,117,51],[116,224,117,230],[105,77,106,114],[102,79,103,114],[104,78,104,111],[100,204,100,239],[119,52,121,57],[119,48,121,51],[119,67,121,70],[118,212,121,215],[118,173,118,176],[118,143,121,162],[118,164,118,165],[118,238,121,239],[119,3,121,8],[178,3,179,16],[118,177,118,182],[118,183,121,187],[91,128,94,239],[118,52,118,57],[118,58,121,62],[145,221,156,239],[170,133,171,239],[179,128,180,239],[172,146,174,239],[176,218,177,239],[166,235,169,239],[166,141,169,144],[118,218,121,221],[118,200,121,201],[118,202,118,205],[119,177,121,182],[157,205,161,239],[162,180,165,184],[162,225,165,229],[178,17,179,36],[178,37,179,49],[166,137,169,140],[175,133,177,144],[170,1,178,1],[170,3,177,7],[170,8,171,19],[170,20,171,52],[175,21,177,84],[170,53,171,114],[178,50,179,80],[175,8,177,19],[48,98,49,112],[91,3,94,114],[55,66,55,95],[60,10,60,19],[59,10,59,19],[56,45,57,49],[46,45,48,49],[59,89,60,90],[56,91,57,95],[57,66,57,88],[166,110,169,114],[157,16,165,19],[162,100,165,104],[176,87,177,92],[176,93,177,114],[162,105,165,109],[170,126,178,126],[176,212,177,217],[157,133,165,136],[162,205,165,224],[172,133,174,144],[157,150,159,159],[175,146,177,209],[166,185,169,189],[166,145,169,149],[170,128,177,132],[166,3,169,7],[166,8,169,11],[166,12,169,15],[166,16,169,19],[166,200,169,204],[166,100,169,104],[166,150,169,154],[166,170,169,174],[166,55,169,59],[166,60,169,64],[166,35,169,39],[166,40,169,44],[166,105,169,109],[166,190,169,194],[166,195,169,199],[157,175,169,179],[157,180,161,204],[166,128,169,132],[166,133,169,136],[160,30,165,34],[162,55,165,59],[162,185,165,189],[157,141,165,144],[157,35,165,39],[157,40,165,44],[157,145,165,149],[157,137,165,140],[157,25,159,34],[160,25,165,29],[157,46,165,48],[162,110,165,114],[162,230,165,234],[166,160,169,164],[166,165,169,169],[166,230,169,234],[166,180,169,184],[166,205,169,224],[166,225,169,229],[162,190,165,194],[162,195,165,199],[162,200,165,204],[162,235,165,239],[162,65,165,69],[155,181,155,190],[155,191,155,213],[156,181,156,190],[156,191,156,220],[154,178,156,180],[154,181,154,190],[154,191,154,213],[154,214,155,215],[154,216,155,220],[162,70,165,74],[162,75,165,79],[157,128,165,132],[157,171,165,173],[157,160,165,164],[157,165,165,169],[157,55,161,79],[157,80,161,114],[160,155,165,159],[154,66,154,88],[156,145,156,174],[156,56,156,65],[156,66,156,95],[154,53,156,55],[156,10,156,19],[156,20,156,49],[155,10,155,19],[155,20,155,42],[155,56,155,65],[154,56,154,65],[154,89,155,90],[154,10,154,19],[154,20,154,42],[154,43,155,44],[154,45,155,49],[153,56,153,65],[153,66,153,95],[153,135,153,144],[153,145,153,174],[153,181,153,190],[153,191,153,220],[151,53,153,55],[151,191,151,213],[151,214,152,215],[151,216,152,220],[152,56,152,65],[152,66,152,88],[152,135,152,144],[152,145,152,167],[152,181,152,190],[151,132,153,134],[151,135,151,144],[151,145,151,167],[151,178,153,180],[151,181,151,190],[152,191,152,213],[156,135,156,144],[154,168,155,169],[155,145,155,167],[146,66,146,88],[146,135,146,144],[145,175,146,177],[145,178,147,180],[151,168,152,169],[151,170,152,174],[146,181,146,190],[150,56,150,65],[148,56,148,65],[148,66,148,88],[148,89,149,90],[151,7,153,9],[149,66,149,88],[149,135,149,144],[148,132,150,134],[148,135,148,144],[150,66,150,95],[148,7,150,9],[148,10,148,19],[148,20,148,42],[148,43,149,44],[148,45,149,49],[148,53,150,55],[147,50,156,52],[149,10,149,19],[149,20,149,42],[154,7,156,9],[150,10,150,19],[150,20,150,49],[145,96,150,114],[147,66,147,95],[146,191,146,213],[145,181,145,190],[150,145,150,174],[150,181,150,190],[148,168,149,169],[145,191,145,213],[150,191,150,220],[148,170,149,174],[148,178,150,180],[148,181,148,190],[148,191,148,213],[148,214,149,215],[148,216,149,220],[149,181,149,190],[149,145,149,167],[148,145,148,167],[145,214,146,215],[147,145,147,174],[147,175,156,177],[147,181,147,190],[147,191,147,220],[145,216,146,220],[154,145,154,167],[149,191,149,213],[145,3,156,6],[145,7,147,9],[145,10,145,19],[145,20,145,42],[145,43,146,44],[145,45,146,49],[147,10,147,19],[147,20,147,49],[146,10,146,19],[146,20,146,42],[151,10,151,19],[151,20,151,42],[151,43,152,44],[151,45,152,49],[153,10,153,19],[153,20,153,49],[152,10,152,19],[152,20,152,42],[139,179,140,180],[139,181,140,185],[139,214,140,237],[141,175,144,182],[141,98,142,112],[143,98,144,112],[143,113,144,114],[141,113,142,114],[141,128,144,134],[141,135,141,144],[141,145,141,167],[141,212,142,213],[142,135,143,144],[142,145,143,167],[144,135,144,144],[144,145,144,174],[139,166,140,171],[139,172,140,173],[139,174,140,178],[139,238,140,239],[141,3,144,9],[141,10,141,19],[141,20,141,42],[141,50,144,57],[144,10,144,19],[144,20,144,49],[137,238,138,239],[139,11,140,20],[139,21,140,29],[139,30,140,31],[139,32,140,40],[139,41,140,46],[139,47,140,48],[139,186,140,187],[139,188,140,197],[139,198,140,204],[139,146,140,154],[139,155,140,156],[139,157,140,165],[139,136,140,145],[137,205,138,213],[137,214,138,237],[139,205,140,213],[139,63,140,72],[139,73,140,79],[139,80,140,88],[139,89,140,112],[139,113,140,114],[137,136,138,145],[137,89,138,112],[137,113,138,114],[137,61,138,62],[137,63,138,72],[137,73,138,79],[137,80,138,88],[135,238,136,239],[137,3,140,10],[137,11,138,20],[137,21,138,31],[137,32,138,40],[137,41,138,46],[137,47,138,48],[137,49,138,53],[137,54,138,55],[137,56,138,60],[137,166,138,171],[139,49,140,53],[139,54,140,55],[139,56,140,60],[139,61,140,62],[137,172,138,173],[137,146,138,156],[137,174,138,178],[137,179,138,180],[137,181,138,185],[135,155,136,156],[135,92,136,99],[135,100,136,112],[135,50,136,51],[135,197,136,204],[135,205,136,214],[135,217,136,224],[135,177,136,185],[135,186,136,194],[135,157,136,165],[135,215,136,216],[135,113,136,114],[135,41,136,48],[135,128,136,135],[124,212,126,237],[124,238,126,239],[125,130,126,153],[124,87,126,112],[124,113,126,114],[124,128,126,129],[124,131,124,153],[124,156,126,181],[124,154,126,155],[124,184,126,209],[124,210,126,211],[118,188,121,191],[118,192,118,195],[119,192,121,195],[118,222,121,223],[118,210,121,211],[118,140,118,142],[118,85,121,86],[118,91,121,92],[122,156,123,183],[122,184,123,211],[122,212,123,239],[122,87,123,114],[122,128,123,155],[118,206,121,209],[118,216,121,217],[119,173,121,176],[118,231,121,237],[119,140,121,142],[122,31,123,58],[122,59,123,86],[135,52,136,60],[135,61,136,69],[135,70,136,71],[135,72,136,79],[135,80,136,89],[128,238,128,239],[131,5,133,114],[125,5,126,28],[131,130,133,239],[134,3,134,40],[134,128,134,165],[135,3,136,10],[135,11,136,20],[135,21,136,29],[135,30,136,31],[135,32,136,40],[135,90,136,91],[135,136,136,145],[135,146,136,154],[135,225,136,237],[135,166,136,173],[135,195,136,196],[110,220,111,237],[110,238,111,239],[112,18,117,40],[112,41,113,80],[112,81,117,86],[112,87,113,105],[112,106,117,114],[112,143,117,165],[112,166,113,205],[112,206,117,211],[116,87,117,98],[115,128,116,139],[115,140,117,142],[116,99,117,105],[116,52,117,70],[116,71,117,80],[112,212,113,230],[116,166,117,176],[116,177,117,195],[116,196,117,205],[112,231,117,239],[113,128,114,142],[114,41,115,80],[114,87,115,105],[109,194,109,195],[109,216,109,217],[109,221,109,236],[109,238,109,239],[110,27,111,45],[110,46,111,47],[110,50,111,68],[110,69,111,70],[110,72,111,90],[109,113,109,114],[110,91,111,92],[109,128,111,149],[109,150,109,153],[109,155,109,169],[109,171,109,172],[110,95,111,112],[110,113,111,114],[110,152,111,170],[110,171,111,172],[109,96,109,111],[110,175,111,193],[110,194,111,195],[110,197,111,215],[110,216,111,217],[107,218,108,239],[109,3,111,24],[109,25,109,28],[109,30,109,44],[109,46,109,47],[109,69,109,70],[109,91,109,92],[102,204,103,239],[104,203,104,236],[105,202,106,239],[107,93,108,114],[107,128,108,149],[107,175,108,193],[107,198,108,215],[100,128,106,133],[100,134,106,137],[101,79,101,113],[103,126,169,126],[107,150,108,172],[118,166,121,170],[118,171,121,172],[137,128,140,135],[145,168,146,169],[145,170,146,174],[98,1,99,1],[172,8,174,19],[172,21,174,114],[103,1,169,1],[100,3,106,8],[100,9,106,12],[100,67,100,78],[157,3,165,7],[157,8,165,11],[166,65,169,69],[166,70,169,74],[166,75,169,79],[166,80,169,99],[166,45,169,49],[162,60,165,64],[162,80,165,99],[157,50,169,54],[151,56,151,65],[151,66,151,88],[151,89,152,90],[151,91,152,95],[154,91,155,95],[151,96,156,114],[113,3,114,17],[145,56,145,65],[145,66,145,88],[145,89,146,90],[145,91,146,95],[157,12,165,15],[146,145,146,167],[145,128,156,131],[145,145,145,167],[154,170,155,174],[154,132,156,134],[154,135,154,144],[155,66,155,88],[155,135,155,144],[145,50,146,52],[148,91,149,95],[145,53,147,55],[145,132,147,134],[145,135,145,144],[150,135,150,144],[147,56,147,65],[157,20,165,24],[149,56,149,65],[147,135,147,144],[146,56,146,65],[137,186,138,187],[137,188,138,197],[137,198,138,204],[135,175,136,176],[137,157,138,165],[118,71,121,74],[118,87,121,90],[127,128,127,141],[128,5,130,112],[128,113,128,114],[128,130,130,237],[118,48,118,51],[118,229,121,230],[118,3,118,8],[124,85,126,86],[124,182,126,183],[118,63,121,66],[124,3,126,4],[124,6,124,28],[124,29,126,30],[124,31,126,56],[124,57,126,58],[124,59,126,84],[122,3,123,30],[24,15,26,17],[24,52,26,57],[23,58,26,62],[23,52,23,57],[21,41,22,51],[23,9,23,14],[75,1,83,1],[81,87,82,92],[46,89,47,97],[54,66,54,88],[58,10,58,19],[58,66,58,95],[23,75,26,76],[29,31,31,56],[47,20,48,42],[46,43,48,44],[40,41,41,48],[48,71,49,78],[44,21,45,29],[42,21,43,31],[46,69,49,70],[23,46,26,47],[29,3,31,4],[29,6,29,28],[53,10,53,19],[36,5,38,114],[40,50,41,51],[40,113,41,114],[33,113,33,114],[40,90,41,91],[40,80,41,89],[33,5,35,112],[40,52,41,60],[48,113,49,114],[42,11,43,20],[44,11,45,20],[42,3,45,10],[44,41,45,46],[42,41,43,46],[48,89,49,97],[44,32,45,40],[44,30,45,31],[42,32,43,40],[44,113,45,114],[42,113,43,114],[42,61,43,62],[42,73,43,79],[44,49,45,53],[53,20,53,42],[46,50,49,57],[46,87,47,88],[42,56,43,60],[44,80,45,88],[50,56,50,65],[56,56,56,65],[40,3,41,10],[40,11,41,20],[40,21,41,29],[40,30,41,31],[40,32,41,40],[48,79,49,86],[48,87,49,88],[52,56,52,65],[52,66,52,95],[50,3,61,6],[59,7,61,9],[56,7,58,9],[53,7,55,9],[55,56,55,65],[47,10,48,19],[50,7,52,9],[54,10,54,19],[81,93,82,114],[59,91,60,95],[60,56,60,65],[60,66,60,88],[50,50,51,52],[53,56,53,65],[55,10,55,19],[56,43,57,44],[52,10,52,19],[57,20,57,42],[53,43,54,44],[55,20,55,49],[57,10,57,19],[56,10,56,19],[56,20,56,42],[54,20,54,42],[51,66,51,88],[50,89,51,90],[50,91,51,95],[51,56,51,65],[50,66,50,88],[57,56,57,65],[54,56,54,65],[51,20,51,42],[14,3,16,24],[1,54,2,72],[7,67,8,77],[5,67,5,78],[75,3,82,7],[80,8,82,19],[77,8,79,19],[71,3,74,7],[62,3,70,7],[62,8,70,11],[62,16,70,19],[80,21,82,84],[77,21,79,114],[62,55,66,79],[71,110,74,114],[71,100,74,104],[71,105,74,109],[62,46,70,48],[67,110,70,114],[67,75,70,79],[71,55,74,59],[71,16,74,19],[71,75,74,79],[62,12,70,15],[3,74,4,92],[3,95,4,113],[3,51,4,53],[3,54,4,72],[50,10,50,19],[51,10,51,19],[46,3,49,9],[1,3,2,53],[14,46,14,47],[29,29,31,30],[50,20,50,42],[50,43,51,44],[50,53,52,55],[20,3,21,14],[20,15,22,17],[27,3,28,30],[46,10,46,19],[15,46,16,47],[42,47,43,48],[18,3,19,17],[15,27,16,45],[3,24,4,26],[3,27,4,29],[14,30,14,44],[46,20,46,42],[39,3,39,40],[23,18,26,37],[17,106,22,114],[6,13,11,66],[1,73,2,93],[14,69,14,70],[21,71,22,80],[15,72,16,90],[15,91,16,92],[14,25,14,28],[14,91,14,92],[5,3,11,8],[5,79,5,114],[12,25,13,47],[5,9,11,12],[12,73,13,90],[12,3,13,24],[9,78,9,111],[10,77,11,114],[7,79,8,114],[12,50,13,68],[15,69,16,70],[1,94,2,114],[12,93,13,114],[14,96,14,111],[29,87,31,112],[21,52,22,70],[15,113,16,114],[15,95,16,112],[15,50,16,68],[14,113,14,114],[44,61,45,62],[23,71,26,74],[24,67,26,70],[19,41,20,80],[17,87,18,105],[19,87,20,105],[21,87,22,98],[21,99,22,105],[23,104,26,105],[23,85,26,86],[23,97,26,98],[23,87,26,90],[17,81,22,86],[23,91,26,92],[42,80,43,88],[44,63,45,72],[24,77,26,80],[44,54,45,55],[44,56,45,60],[46,98,47,112],[29,85,31,86],[29,113,31,114],[29,59,31,84],[23,106,26,112],[23,93,26,96],[23,77,23,80],[23,81,26,84],[67,60,70,64],[67,105,70,109],[67,55,70,59],[9,67,11,70],[42,63,43,72],[46,60,49,68],[29,57,31,58],[24,3,26,8],[23,67,23,70],[32,3,32,16],[23,39,23,40],[23,63,26,66],[49,10,49,19],[42,49,43,53],[40,61,41,69],[30,5,31,28],[23,3,23,8],[24,48,26,51],[23,48,23,51],[44,47,45,48],[27,31,28,58],[27,59,28,86],[49,20,49,49],[42,54,43,55],[59,43,60,44],[46,113,47,114],[46,71,47,78],[46,79,47,86],[40,100,41,112],[40,72,41,79],[40,70,41,71],[40,92,41,99],[50,96,51,114],[50,45,51,49],[59,45,60,49],[53,91,54,95],[56,66,56,88],[59,53,61,55],[58,56,58,65],[56,53,58,55],[59,56,59,65],[53,45,54,49],[24,9,26,14],[23,15,23,17],[23,99,26,103],[52,50,61,52],[3,45,4,47],[3,48,4,50],[59,66,59,88],[56,96,57,114],[58,96,61,114],[52,96,55,114],[56,89,57,90],[61,56,61,65],[53,66,53,88],[53,89,54,90],[53,53,55,55],[52,20,52,49],[17,41,18,80],[23,41,26,45],[23,113,26,114],[58,20,58,49],[27,87,28,114],[44,89,45,112],[42,89,43,112],[44,73,45,79],[3,1,4,1],[75,8,76,19],[75,20,76,52],[75,53,76,114],[3,3,4,5],[3,6,4,8],[3,9,4,11],[6,67,6,78],[6,79,6,113],[8,1,74,1],[3,30,4,32],[3,33,4,35],[3,12,4,14],[3,15,4,17],[3,18,4,20],[3,21,4,23],[61,10,61,19],[61,20,61,49],[60,20,60,42],[17,18,22,40],[59,20,59,42],[3,36,4,38],[3,39,4,41],[3,42,4,44],[62,40,70,44],[71,40,74,44],[71,60,74,64],[61,66,61,95],[143,223,144,237],[62,20,70,24],[62,25,64,34],[65,25,70,29],[65,30,70,34],[71,25,74,29],[71,30,74,34],[62,35,70,39],[67,70,70,74],[71,20,74,24],[71,80,74,99],[71,65,74,69],[71,70,74,74],[84,3,85,114],[71,8,74,11],[71,12,74,15],[67,65,70,69],[62,80,66,114],[67,80,70,99],[67,100,70,104],[143,238,144,239],[141,43,143,44],[141,45,143,49],[141,168,143,169],[141,170,143,174],[143,87,144,88],[143,89,144,97],[141,185,144,193],[141,194,144,195],[141,223,142,237],[141,238,142,239],[141,60,144,68],[141,69,144,70],[141,214,142,222],[141,196,142,203],[141,204,142,211],[143,196,144,203],[143,204,144,211],[143,212,144,213],[143,214,144,222],[143,79,144,86],[141,79,142,86],[143,71,144,78],[141,71,142,78],[166,20,169,24],[166,155,169,159],[71,35,74,39],[141,87,142,88],[141,89,142,97],[62,50,74,54],[160,150,165,154],[71,45,74,49],[166,25,169,29],[166,30,169,34],[107,3,108,24],[107,25,108,47],[107,50,108,68],[107,73,108,90],[98,126,99,126],[127,3,127,16],[118,67,118,70],[118,106,121,112],[118,113,121,114],[118,128,118,133],[118,75,121,76],[118,104,121,105],[142,10,143,19],[142,20,143,42]]}
[]
[null,null,null,"※",null,null,null,null,null,null,null,null,null,null,null,null,null,null,null,null,null,null,null,null,null,null,null,null,null,null,null,null,null,null,null,null,null,null,null,null,null,null,null,null,null,null,null,null,null,null,null,null,null,null,"※　種　　　　　　別",null,null,null,null,null,null,null,null,null,null,null,null,null,null,null,null,null,null,"※　　整　理　番　号",null,null,null,null,null,null,null,null,null,null,null,null,null,null,null,null,null,null,null,null,"※"]
[]
[null,"⑦"]
[]
[null,null,null,"支　払\n\nを受け\n\nる　者",null,null,null,null,null,"住　　所",null,null,null,"※区分",null,null,null,null,null,null,null,null,null,null,null,null,null,null,null,null,null,null,null,null,null,null,null,null,null,null,null,null,null,null,null,null,null,null,null,null,null,null,null,null,null,null,null,null,null,null,null,null,null,null,null,null,null,"（受給者番号）"]
[null,null,null,null,null,null,null,null,null,null,null,null,null,null,null,null,null,null,null,null,null,null,null,null,null,null,null,null,null,null,null,null,null,null,null,null,null,null,null,null,null,null,null,null,null,null,null,null,null,null,null,null,null,null,null,null,null,null,null,null,null,null,null,null,null,null,null,"（個人番号）"]
[null,null,null,null,null,null,null,null,null,null,null,null,null,null,null,null,null,null,null,null,null,null,null,null,null,null,null,null,null,null,null,null,null,null,null,null,null,null,null,null,null,null,null,null,null,null,null,null,null,null,null,null,null,null,null,null,null,null,null,null,null,null,null,null,null,null,null,"（役職名）"]
[null,"給与支払報告書（個人別明細書）"]
[null,null,null,null,null,null,null,null,null,null,null,null,null,null,null,null,null,null,null,null,null,null,null,null,null,null,null,null,null,null,null,null,null,null,null,null,null,null,null,null,null,null,null,null,null,null,null,null,null,null,null,null,null,null,null,null,null,null,null,null,null,null,null,null,null,null,null,"氏名",null,null,null,"（フリガナ）"]
[]
[]
[null,null,null,"種　　　　　　　　　　別",null,null,null,null,null,null,null,null,null,null,null,null,null,null,null,null,null,null,null,null,null,"支　　　払　　　金　　　額",null,null,null,null,null,null,null,null,null,null,null,null,null,null,null,null,null,null,null,null,null,null,null,null,"給与所得控除後の金額\n（調整控除後）",null,null,null,null,null,null,null,null,null,null,null,null,null,null,null,null,null,null,null,null,null,null,"所得控除の額の合計額",null,null,null,null,null,null,null,null,null,null,null,null,null,null,null,null,null,null,null,"源　泉　徴　収　税　額"]
[]
[null,null,null,null,null,null,null,null,null,null,null,null,null,null,null,null,null,null,null,null,null,null,null,null,null,"内",null,null,null,null,null,null,null,null,null,null,null,null,null,null,null,null,null,null,null,null,"円",null,null,null,null,null,null,null,null,null,null,null,null,null,null,null,null,null,null,null,null,null,null,"円",null,null,null,null,null,null,null,null,null,null,null,null,null,null,null,null,null,null,null,null,null,"円",null,"内",null,null,null,null,null,null,null,null,null,null,null,null,null,null,null,null,null,null,null,"円"]
[]
[]
[null,null,null,null,null,null,null,null,null,null,null,null,null,null,null,null,null,null,"配偶者（特別）控除の額",null,null,null,null,null,null,null,null,null,null,null,null,null,null,null,null,null,null,null,null,null,null,"控 除 対 象 扶 養 親 族 の 数",null,null,null,null,null,null,null,null,null,null,null,null,null,null,null,null,null,null,null,null,null,null,null,null,null,null,null,null,null,null,null,null,null,null,null,null,null,null,null,"１６歳未満扶養親族の数",null,null,null,null,null,"障 害 者 の 数",null,null,null,null,null,null,null,null,null,null,null,null,null,null,null,null,null,null,"非居住者である親族の数"]
[null,null,null,"（源泉）控除対象配偶者"]
[null,null,null,null,null,null,null,null,null,null,null,null,null,null,null,null,null,null,null,null,null,null,null,null,null,null,null,null,null,null,null,null,null,null,null,null,null,null,null,null,null,"（配偶者を除く。）",null,null,null,null,null,null,null,null,null,null,null,null,null,null,null,null,null,null,null,null,null,null,null,null,null,null,null,null,null,null,null,null,null,null,null,null,null,null,null,null,null,null,null,null,null,"（本人を除く。）"]
[null,null,null,"の有無等",null,null,null,null,null,null,null,null,null,null,null,"老人"]
[null,null,null,null,null,null,null,null,null,null,null,null,null,null,null,null,null,null,null,null,null,null,null,null,null,null,null,null,null,null,null,null,null,null,null,null,null,null,null,null,null,"特定",null,null,null,null,null,null,null,null,null,null,"老　人",null,null,null,null,null,null,null,null,null,null,null,null,null,null,null,null,null,null,"そ の 他",null,null,null,null,null,null,null,null,null,null,null,null,null,null,null,"特　別",null,null,null,null,null,null,null,null,null,null,null,"その他"]
[]
[null,null,null,"有",null,null,null,null,null,"従有",null,null,null,null,null,null,null,null,null,null,null,null,null,null,null,null,null,null,null,null,null,null,null,null,null,null,null,null,null,"円",null,null,null,null,null,null,"人",null,"従人",null,null,null,"内",null,null,null,null,null,null,null,null,null,null,"人",null,null,null,"従人",null,null,null,null,null,null,null,"人",null,"従人",null,null,null,null,null,null,null,"人",null,null,null,null,null,"内",null,null,null,null,null,"人",null,null,null,null,null,null,"人",null,null,null,null,null,null,null,null,"人"]
[]
[]
[]
[null,null,null,"社会保険料等の金額",null,null,null,null,null,null,null,null,null,null,null,null,null,null,null,null,null,null,null,null,null,null,null,null,null,null,null,"生命保険料の控除額",null,null,null,null,null,null,null,null,null,null,null,null,null,null,null,null,null,null,null,null,null,null,null,null,null,null,null,"地震保険料の控除額",null,null,null,null,null,null,null,null,null,null,null,null,null,null,null,null,null,null,null,null,null,null,null,null,null,null,null,"住宅借入金等特別控除の額"]
[]
[null,null,null,"内",null,null,null,null,null,null,null,null,null,null,null,null,null,null,null,null,null,null,null,null,null,null,null,null,null,"円",null,null,null,null,null,null,null,null,null,null,null,null,null,null,null,null,null,null,null,null,null,null,null,null,null,null,null,"円",null,null,null,null,null,null,null,null,null,null,null,null,null,null,null,null,null,null,null,null,null,null,null,null,null,null,null,"円",null,null,null,null,null,null,null,null,null,null,null,null,null,null,null,null,null,null,null,null,null,null,null,null,null,null,null,"円"]
[]
[]
[null,null,null,"（摘要）"]
[]
[]
[]
[]
[]
[]
[]
[null,null,null,"生命保険料の金額の内訳",null,null,null,null,null,null,null,"新生命保険料の金額",null,null,null,null,null,null,null,null,null,null,null,null,null,null,null,null,null,null,"円",null,"旧生命保険料の金額",null,null,null,null,null,null,null,null,null,null,null,null,null,null,null,null,null,"円",null,"介護医療保険料の金額",null,null,null,null,null,null,null,null,null,null,null,null,null,null,null,null,null,"円",null,"新個人年金保険料の金額",null,null,null,null,null,null,null,null,null,null,null,null,null,null,null,null,null,"円",null,"旧個人年金保険料の金額",null,null,null,null,null,null,null,null,null,null,null,null,null,null,null,null,null,null,null,null,"円"]
[]
[null,null,null,"住宅借入金等特別控除の額の内訳",null,null,null,null,null,null,null,"住宅借入金等特別控除適用数",null,null,null,null,null,null,null,null,null,null,null,null,null,null,null,null,null,null,null,null,"居住開始年月日（1回目）",null,null,null,null,null,null,null,null,null,null,null,null,null,null,"年",null,null,null,null,null,null,"月",null,null,null,null,null,null,"日",null,"住宅借入金等特別控除区分（1回目）",null,null,null,null,null,null,null,null,null,null,null,null,null,null,null,null,"住宅借入金等年末残高（1回目）",null,null,null,null,null,null,null,null,null,null,null,null,null,null,null,null,null,null,null,null,null,null,null,null,null,null,null,null,null,null,null,null,"円"]
[]
[null,null,null,null,null,null,null,null,null,null,null,"住宅借入金等特別控除可能額",null,null,null,null,null,null,null,null,null,null,null,null,null,null,null,null,null,null,"円",null,"居住開始年月日（2回目）",null,null,null,null,null,null,null,null,null,null,null,null,null,null,"年",null,null,null,null,null,null,"月",null,null,null,null,null,null,"日",null,"住宅借入金等特別控除区分（2回目）",null,null,null,null,null,null,null,null,null,null,null,null,null,null,null,null,"住宅借入金等年末残高（2回目）",null,null,null,null,null,null,null,null,null,null,null,null,null,null,null,null,null,null,null,null,null,null,null,null,null,null,null,null,null,null,null,null,"円"]
[]
[null,null,null,"（源泉・特別）\n控除対象\n配偶者",null,null,null,null,null,null,"（フリガナ）",null,null,null,null,null,null,null,null,null,null,null,null,null,null,null,null,null,null,null,null,null,null,null,null,null,null,null,null,null,null,null,null,"区分",null,null,null,null,null,null,"配偶者の\n合計所得",null,null,null,null,null,null,null,null,null,null,null,null,null,null,null,null,null,null,"円",null,"国民年金保険料等の金額",null,null,null,null,null,null,null,null,null,null,null,null,null,null,null,"円",null,"旧長期損害保険料の金額",null,null,null,null,null,null,null,null,null,null,null,null,null,null,null,null,null,null,null,null,null,null,null,"円"]
[null,null,null,null,null,null,null,null,null,null,"氏　名"]
[null,null,null,null,null,null,null,null,null,null,null,null,null,null,null,null,null,null,null,null,null,null,null,null,null,null,null,null,null,null,null,null,null,null,null,null,null,null,null,null,null,null,null,null,null,null,null,null,null,null,null,null,null,null,null,null,null,null,null,null,null,null,null,null,null,null,null,null,null,null,null,"基礎控除の額",null,null,null,null,null,null,null,null,null,null,null,null,null,null,null,"円",null,"所得金額\n調整控除額",null,null,null,null,null,null,null,null,null,null,null,null,null,null,null,null,null,null,null,null,null,null,null,"円"]
[null,null,null,null,null,null,null,null,null,null,"個人番号"]
[null,null,null,"控除対象扶養親族",null,null,null,1,null,null,"（フリガナ）",null,null,null,null,null,null,null,null,null,null,null,null,null,null,null,null,null,null,null,null,null,null,null,null,null,null,null,null,null,null,null,null,"区分",null,null,null,null,null,null,16,null,null,1,null,null,"（フリガナ）",null,null,null,null,null,null,null,null,null,null,null,null,null,null,null,null,null,null,null,null,null,null,null,null,null,null,null,null,null,null,null,null,"区分",null,null,null,null,null,null,"5人目以降の控除対象扶養親族の個人番号"]
[null,null,null,null,null,null,null,null,null,null,"氏　名",null,null,null,null,null,null,null,null,null,null,null,null,null,null,null,null,null,null,null,null,null,null,null,null,null,null,null,null,null,null,null,null,null,null,null,null,null,null,null,null,null,null,null,null,null,"氏　名"]
[null,null,null,null,null,null,null,null,null,null,"個人番号",null,null,null,null,null,null,null,null,null,null,null,null,null,null,null,null,null,null,null,null,null,null,null,null,null,null,null,null,null,null,null,null,null,null,null,null,null,null,null,"歳未満の扶養親族",null,null,null,null,null,"個人番号"]
[null,null,null,null,null,null,null,2,null,null,"（フリガナ）",null,null,null,null,null,null,null,null,null,null,null,null,null,null,null,null,null,null,null,null,null,null,null,null,null,null,null,null,null,null,null,null,"区分",null,null,null,null,null,null,null,null,null,2,null,null,"（フリガナ）",null,null,null,null,null,null,null,null,null,null,null,null,null,null,null,null,null,null,null,null,null,null,null,null,null,null,null,null,null,null,null,null,"区分"]
[null,null,null,null,null,null,null,null,null,null,"氏　名",null,null,null,null,null,null,null,null,null,null,null,null,null,null,null,null,null,null,null,null,null,null,null,null,null,null,null,null,null,null,null,null,null,null,null,null,null,null,null,null,null,null,null,null,null,"氏　名"]
[null,null,null,null,null,null,null,null,null,null,"個人番号",null,null,null,null,null,null,null,null,null,null,null,null,null,null,null,null,null,null,null,null,null,null,null,null,null,null,null,null,null,null,null,null,null,null,null,null,null,null,null,null,null,null,null,null,null,"個人番号"]
[null,null,null,null,null,null,null,3,null,null,"（フリガナ）",null,null,null,null,null,null,null,null,null,null,null,null,null,null,null,null,null,null,null,null,null,null,null,null,null,null,null,null,null,null,null,null,"区分",null,null,null,null,null,null,null,null,null,3,null,null,"（フリガナ）",null,null,null,null,null,null,null,null,null,null,null,null,null,null,null,null,null,null,null,null,null,null,null,null,null,null,null,null,null,null,null,null,"区分",null,null,null,null,null,null,"5人目以降の16歳未満の扶養親族の個人番号"]
[null,null,null,null,null,null,null,null,null,null,"氏　名",null,null,null,null,null,null,null,null,null,null,null,null,null,null,null,null,null,null,null,null,null,null,null,null,null,null,null,null,null,null,null,null,null,null,null,null,null,null,null,null,null,null,null,null,null,"氏　名"]
[null,null,null,null,null,null,null,null,null,null,"個人番号",null,null,null,null,null,null,null,null,null,null,null,null,null,null,null,null,null,null,null,null,null,null,null,null,null,null,null,null,null,null,null,null,null,null,null,null,null,null,null,null,null,null,null,null,null,"個人番号"]
[null,null,null,null,null,null,null,4,null,null,"（フリガナ）",null,null,null,null,null,null,null,null,null,null,null,null,null,null,null,null,null,null,null,null,null,null,null,null,null,null,null,null,null,null,null,null,"区分",null,null,null,null,null,null,null,null,null,4,null,null,"（フリガナ）",null,null,null,null,null,null,null,null,null,null,null,null,null,null,null,null,null,null,null,null,null,null,null,null,null,null,null,null,null,null,null,null,"区分"]
[null,null,null,null,null,null,null,null,null,null,"氏　名",null,null,null,null,null,null,null,null,null,null,null,null,null,null,null,null,null,null,null,null,null,null,null,null,null,null,null,null,null,null,null,null,null,null,null,null,null,null,null,null,null,null,null,null,null,"氏　名"]
[null,null,null,null,null,null,null,null,null,null,"個人番号",null,null,null,null,null,null,null,null,null,null,null,null,null,null,null,null,null,null,null,null,null,null,null,null,null,null,null,null,null,null,null,null,null,null,null,null,null,null,null,null,null,null,null,null,null,"個人番号"]
[null,null,null,"未成年者",null,null,null,null,"外国人",null,null,null,"死亡退職",null,null,null,"災害者",null,null,null,"乙　欄",null,null,null,null,"本人が障害者",null,null,null,null,null,null,null,null,null,"寡婦",null,null,null,null,"ひとり親",null,null,null,null,null,"勤労学生",null,null,null,null,null,null,null,null,"中  途  就  ・  退  職",null,null,null,null,null,null,null,null,null,null,null,null,null,null,null,null,null,null,null,null,null,null,null,null,"受  給  者  生  年  月  日"]
[]
[]
[null,null,null,null,null,null,null,null,null,null,null,null,null,null,null,null,null,null,null,null,null,null,null,null,null,"特別",null,null,null,null,"その他"]
[]
[null,null,null,null,null,null,null,null,null,null,null,null,null,null,null,null,null,null,null,null,null,null,null,null,null,null,null,null,null,null,null,null,null,null,null,null,null,null,null,null,null,null,null,null,null,null,null,null,null,null,null,null,null,null,null,"就職",null,null,null,null,"退職",null,null,null,null,"年",null,null,null,null,"月",null,null,null,null,"日",null,null,null,null,"元号",null,null,null,null,null,null,null,null,null,null,null,null,null,null,null,null,null,null,null,"年",null,null,null,null,"月",null,null,null,null,"日"]
[]
[]
[]
[]
[]
[]
[]
[null,"(市区町村提出用)",null,"支払者",null,null,null,null,"個人番号又は\n法人番号",null,null,null,null,null,null,null,null,null,null,null,null,null,null,null,null,null,null,null,null,null,null,null,null,null,null,null,null,null,null,null,null,null,null,null,null,null,null,null,null,null,null,null,null,"（支払者の法人番号13桁、個人事業主の場合は個人番号12桁を記載してください。）"]
[]
[null,null,null,null,null,null,null,null,"住所（居所）又は所在地"]
[]
[]
[null,null,null,null,null,null,null,null,"氏名又は名称"]
[null,null,null,null,null,null,null,null,null,null,null,null,null,null,null,null,null,null,null,null,null,null,null,null,null,null,null,null,null,null,null,null,null,null,null,null,null,null,null,null,null,null,null,null,null,null,null,null,null,null,null,null,null,null,null,null,null,null,null,null,null,null,null,null,null,null,null,null,null,null,null,null,null,null,null,null,null,null,null,null,null,null,null,null,null,null,null,"（電話）"]
[]
[]
[null,null,null,"（摘要）に前職分の加算額、支払者等を記入してください。"]
[]
[]
[]
[]
[]
[]
[]
[]
[]
[]
[]
[null,null,null,"令和6年分 　 給 与 所 得 の 源 泉 徴 収 票",null,null,null,null,null,null,null,null,null,null,null,null,null,null,null,null,null,null,null,null,null,null,null,null,null,null,null,null,null,null,null,null,null,null,null,null,null,null,null,null,null,null,null,null,null,null,null,null,null,null,null,null,null,null,null,null,null,null,null,null,null,null,null,null,null,null,null,null,null,null,null,null,null,null,null,null,null,null,null,null,null,null,null,null,null,null,null,null,null,null,null,null,null,null,null,null,null,null,null,null,null,null,null,null,null,null,null,null,null,null,null,null,null,null,null,null,null,null,null,null,null,null,null,null,"令和6年分 　 給 与 所 得 の 源 泉 徴 収 票"]
[]
[]
[]
[null,null,null,"支　払\n\nを受け\n\nる　者",null,null,null,null,null,"住　　所",null,null,null,{"$f":"N7","v":0},null,null,null,null,null,null,null,null,null,null,null,null,null,null,null,null,null,null,null,null,null,null,null,null,null,null,null,null,null,null,null,null,null,null,null,null,null,null,null,null,null,null,null,null,null,null,null,null,null,null,null,null,null,"（受給者番号）",null,null,null,null,null,null,null,null,null,null,null,{"$f":"CB6","v":0},null,null,null,null,null,null,null,null,null,null,null,null,null,null,null,null,null,null,null,null,null,null,null,null,null,null,null,null,null,null,null,null,null,null,null,null,null,null,null,null,null,null,null,null,null,null,null,null,"支　払\n\nを受け\n\nる　者",null,null,null,null,null,"住　　所",null,null,null,{"$f":"N7","v":0},null,null,null,null,null,null,null,null,null,null,null,null,null,null,null,null,null,null,null,null,null,null,null,null,null,null,null,null,null,null,null,null,null,null,null,null,null,null,null,null,null,null,null,null,null,null,null,null,null,null,null,null,null,"（受給者番号）",null,null,null,null,null,null,null,null,null,null,null,{"$f":"CB6","v":0}]
[null,null,null,null,null,null,null,null,null,null,null,null,null,null,null,null,null,null,null,null,null,null,null,null,null,null,null,null,null,null,null,null,null,null,null,null,null,null,null,null,null,null,null,null,null,null,null,null,null,null,null,null,null,null,null,null,null,null,null,null,null,null,null,null,null,null,null,"（個人番号）",null,null,null,null,null,null,null,null,null,null,null,{"$f":"CB7","v":0}]
[null,null,null,null,null,null,null,null,null,null,null,null,null,null,null,null,null,null,null,null,null,null,null,null,null,null,null,null,null,null,null,null,null,null,null,null,null,null,null,null,null,null,null,null,null,null,null,null,null,null,null,null,null,null,null,null,null,null,null,null,null,null,null,null,null,null,null,"（役職名）",null,null,null,null,null,null,null,null,null,null,null,{"$f":"CB8","v":0},null,null,null,null,null,null,null,null,null,null,null,null,null,null,null,null,null,null,null,null,null,null,null,null,null,null,null,null,null,null,null,null,null,null,null,null,null,null,null,null,null,null,null,null,null,null,null,null,null,null,null,null,null,null,null,null,null,null,null,null,null,null,null,null,null,null,null,null,null,null,null,null,null,null,null,null,null,null,null,null,null,null,null,null,null,null,null,null,null,null,null,null,null,null,null,null,null,null,null,null,null,null,null,null,null,null,null,null,null,null,null,null,"（役職名）",null,null,null,null,null,null,null,null,null,null,null,{"$f":"CB8","v":0}]
[]
[null,null,null,null,null,null,null,null,null,null,null,null,null,null,null,null,null,null,null,null,null,null,null,null,null,null,null,null,null,null,null,null,null,null,null,null,null,null,null,null,null,null,null,null,null,null,null,null,null,null,null,null,null,null,null,null,null,null,null,null,null,null,null,null,null,null,null,"氏名",null,null,null,"（フリガナ）",null,null,null,null,null,null,{"$f":"CA10","v":0},null,null,null,null,null,null,null,null,null,null,null,null,null,null,null,null,null,null,null,null,null,null,null,null,null,null,null,null,null,null,null,null,null,null,null,null,null,null,null,null,null,null,null,null,null,null,null,null,null,null,null,null,null,null,null,null,null,null,null,null,null,null,null,null,null,null,null,null,null,null,null,null,null,null,null,null,null,null,null,null,null,null,null,null,null,null,null,null,null,null,null,null,null,null,null,null,null,null,null,null,null,null,null,null,null,null,null,null,null,null,null,null,null,"氏名",null,null,null,"（フリガナ）",null,null,null,null,null,null,{"$f":"CA10","v":0}]
[null,null,null,null,null,null,null,null,null,null,null,null,null,null,null,null,null,null,null,null,null,null,null,null,null,null,null,null,null,null,null,null,null,null,null,null,null,null,null,null,null,null,null,null,null,null,null,null,null,null,null,null,null,null,null,null,null,null,null,null,null,null,null,null,null,null,null,null,null,null,null,null,null,null,null,null,null,{"$f":"$BZ$11","v":0},null,null,null,null,null,null,null,null,null,null,null,null,null,null,null,null,null,null,null,null,null,null,null,null,null,null,null,null,null,null,null,null,null,null,null,null,null,null,null,null,null,null,null,null,null,null,null,null,null,null,null,null,null,null,null,null,null,null,null,null,null,null,null,null,null,null,null,null,null,null,null,null,null,null,null,null,null,null,null,null,null,null,null,null,null,null,null,null,null,null,null,null,null,null,null,null,null,null,null,null,null,null,null,null,null,null,null,null,null,null,null,null,null,null,null,null,null,null,null,null,null,null,null,null,{"$f":"$BZ$11","v":0}]
[]
[null,null,null,"種　　　　　　　　　　別",null,null,null,null,null,null,null,null,null,null,null,null,null,null,null,null,null,null,null,null,null,"支　　　払　　　金　　　額",null,null,null,null,null,null,null,null,null,null,null,null,null,null,null,null,null,null,null,null,null,null,null,null,"給与所得控除後の金額\n（調整控除後）",null,null,null,null,null,null,null,null,null,null,null,null,null,null,null,null,null,null,null,null,null,null,"所得控除の額の合計額",null,null,null,null,null,null,null,null,null,null,null,null,null,null,null,null,null,null,null,"源　泉　徴　収　税　額",null,null,null,null,null,null,null,null,null,null,null,null,null,null,null,null,null,null,null,null,null,null,null,null,null,null,null,null,null,null,null,null,null,null,"種　　　　　　　　　　別",null,null,null,null,null,null,null,null,null,null,null,null,null,null,null,null,null,null,null,null,null,"支　　　払　　　金　　　額",null,null,null,null,null,null,null,null,null,null,null,null,null,null,null,null,null,null,null,null,null,null,null,null,"給与所得控除後の金額\n（調整控除後）",null,null,null,null,null,null,null,null,null,null,null,null,null,null,null,null,null,null,null,null,null,null,"所得控除の額の合計額",null,null,null,null,null,null,null,null,null,null,null,null,null,null,null,null,null,null,null,"源　泉　徴　収　税　額"]
[]
[null,null,null,{"$f":"$D$15","v":0},null,null,null,null,null,null,null,null,null,null,null,null,null,null,null,null,null,null,null,null,null,"内",null,null,null,null,{"$f":"$AE$15","v":0},null,null,null,null,null,null,null,null,null,null,null,null,null,null,null,"円",null,null,null,null,null,null,null,null,null,null,null,null,null,null,null,null,null,null,null,null,null,null,"円",null,null,null,null,null,null,null,null,null,null,null,null,null,null,null,null,null,null,null,null,null,"円",null,"内",null,null,{"$f":"$CS$15","v":0},null,null,null,null,null,null,null,null,null,null,null,null,null,null,null,null,"円",null,null,null,null,null,null,null,null,null,null,null,null,null,null,{"$f":"$D$15","v":0},null,null,null,null,null,null,null,null,null,null,null,null,null,null,null,null,null,null,null,null,null,"内",null,null,null,null,{"$f":"$AE$15","v":0},null,null,null,null,null,null,null,null,null,null,null,null,null,null,null,"円",null,null,null,null,null,null,null,null,null,null,null,null,null,null,null,null,null,null,null,null,null,null,"円",null,null,null,null,null,null,null,null,null,null,null,null,null,null,null,null,null,null,null,null,null,"円",null,"内",null,null,{"$f":"$CS$15","v":0},null,null,null,null,null,null,null,null,null,null,null,null,null,null,null,null,"円"]
[null,null,null,null,null,null,null,null,null,null,null,null,null,null,null,null,null,null,null,null,null,null,null,null,null,null,null,{"$f":"$AB$16","v":0},null,null,null,null,null,null,null,null,null,null,null,null,null,null,null,null,null,null,null,null,null,null,{"$f":"$AY$16","v":0},null,null,null,null,null,null,null,null,null,null,null,null,null,null,null,null,null,null,null,null,null,{"$f":"$BU$16","v":0},null,null,null,null,null,null,null,null,null,null,null,null,null,null,null,null,null,null,null,null,null,null,{"$f":"$CR$16","v":0},null,null,null,null,null,null,null,null,null,null,null,null,null,null,null,null,null,null,null,null,null,null,null,null,null,null,null,null,null,null,null,null,null,null,null,null,null,null,null,null,null,null,null,null,null,null,null,null,null,null,null,null,null,null,null,null,{"$f":"$AB$16","v":0},null,null,null,null,null,null,null,null,null,null,null,null,null,null,null,null,null,null,null,null,null,null,{"$f":"$AY$16","v":0},null,null,null,null,null,null,null,null,null,null,null,null,null,null,null,null,null,null,null,null,null,{"$f":"$BU$16","v":0},null,null,null,null,null,null,null,null,null,null,null,null,null,null,null,null,null,null,null,null,null,null,{"$f":"$CR$16","v":0}]
[]
[null,null,null,null,null,null,null,null,null,null,null,null,null,null,null,null,null,null,"配偶者（特別）控除の額",null,null,null,null,null,null,null,null,null,null,null,null,null,null,null,null,null,null,null,null,null,null,"控 除 対 象 扶 養 親 族 の 数",null,null,null,null,null,null,null,null,null,null,null,null,null,null,null,null,null,null,null,null,null,null,null,null,null,null,null,null,null,null,null,null,null,null,null,null,null,null,null,"１６歳未満扶養親族の数",null,null,null,null,null,"障 害 者 の 数",null,null,null,null,null,null,null,null,null,null,null,null,null,null,null,null,null,null,"非居住者である親族の数",null,null,null,null,null,null,null,null,null,null,null,null,null,null,null,null,null,null,null,null,null,null,null,null,null,null,null,null,null,null,null,null,null,null,null,null,"配偶者（特別）控除の額",null,null,null,null,null,null,null,null,null,null,null,null,null,null,null,null,null,null,null,null,null,null,"控 除 対 象 扶 養 親 族 の 数",null,null,null,null,null,null,null,null,null,null,null,null,null,null,null,null,null,null,null,null,null,null,null,null,null,null,null,null,null,null,null,null,null,null,null,null,null,null,null,"１６歳未満扶養親族の数",null,null,null,null,null,"障 害 者 の 数",null,null,null,null,null,null,null,null,null,null,null,null,null,null,null,null,null,null,"非居住者である親族の数"]
[null,null,null,"（源泉）控除対象配偶者",null,null,null,null,null,null,null,null,null,null,null,null,null,null,null,null,null,null,null,null,null,null,null,null,null,null,null,null,null,null,null,null,null,null,null,null,null,null,null,null,null,null,null,null,null,null,null,null,null,null,null,null,null,null,null,null,null,null,null,null,null,null,null,null,null,null,null,null,null,null,null,null,null,null,null,null,null,null,null,null,null,null,null,null,null,null,null,null,null,null,null,null,null,null,null,null,null,null,null,null,null,null,null,null,null,null,null,null,null,null,null,null,null,null,null,null,null,null,null,null,null,null,null,null,"（源泉）控除対象配偶者"]
[null,null,null,null,null,null,null,null,null,null,null,null,null,null,null,null,null,null,null,null,null,null,null,null,null,null,null,null,null,null,null,null,null,null,null,null,null,null,null,null,null,"（配偶者を除く。）",null,null,null,null,null,null,null,null,null,null,null,null,null,null,null,null,null,null,null,null,null,null,null,null,null,null,null,null,null,null,null,null,null,null,null,null,null,null,null,null,null,null,null,null,null,"（本人を除く。）",null,null,null,null,null,null,null,null,null,null,null,null,null,null,null,null,null,null,null,null,null,null,null,null,null,null,null,null,null,null,null,null,null,null,null,null,null,null,null,null,null,null,null,null,null,null,null,null,null,null,null,null,null,null,null,null,null,null,null,null,null,null,null,null,null,null,null,null,null,null,null,null,null,null,null,null,null,null,"（配偶者を除く。）",null,null,null,null,null,null,null,null,null,null,null,null,null,null,null,null,null,null,null,null,null,null,null,null,null,null,null,null,null,null,null,null,null,null,null,null,null,null,null,null,null,null,null,null,null,"（本人を除く。）"]
[null,null,null,"の有無等",null,null,null,null,null,null,null,null,null,null,null,"老人",null,null,null,null,null,null,null,null,null,null,null,null,null,null,null,null,null,null,null,null,null,null,null,null,null,null,null,null,null,null,null,null,null,null,null,null,null,null,null,null,null,null,null,null,null,null,null,null,null,null,null,null,null,null,null,null,null,null,null,null,null,null,null,null,null,null,null,null,null,null,null,null,null,null,null,null,null,null,null,null,null,null,null,null,null,null,null,null,null,null,null,null,null,null,null,null,null,null,null,null,null,null,null,null,null,null,null,null,null,null,null,null,"の有無等",null,null,null,null,null,null,null,null,null,null,null,"老人"]
[null,null,null,null,null,null,null,null,null,null,null,null,null,null,null,null,null,null,null,null,null,null,null,null,null,null,null,null,null,null,null,null,null,null,null,null,null,null,null,null,null,"特定",null,null,null,null,null,null,null,null,null,null,"老　人",null,null,null,null,null,null,null,null,null,null,null,null,null,null,null,null,null,null,"そ の 他",null,null,null,null,null,null,null,null,null,null,null,null,null,null,null,"特　別",null,null,null,null,null,null,null,null,null,null,null,"その他",null,null,null,null,null,null,null,null,null,null,null,null,null,null,null,null,null,null,null,null,null,null,null,null,null,null,null,null,null,null,null,null,null,null,null,null,null,null,null,null,null,null,null,null,null,null,null,null,null,null,null,null,null,null,null,null,null,null,null,null,null,null,null,null,null,null,"特定",null,null,null,null,null,null,null,null,null,null,"老　人",null,null,null,null,null,null,null,null,null,null,null,null,null,null,null,null,null,null,"そ の 他",null,null,null,null,null,null,null,null,null,null,null,null,null,null,null,"特　別",null,null,null,null,null,null,null,null,null,null,null,"その他"]
[]
[null,null,null,"有",null,null,null,null,null,"従有",null,null,null,null,null,null,null,null,{"$f":"$S$24","v":0},null,null,null,null,null,null,null,null,null,null,null,null,null,null,null,null,null,null,null,null,"円",null,{"$f":"$AP$24","v":0},null,null,null,null,"人",null,"従人",null,null,null,"内",null,null,null,null,null,{"$f":"$BG$24","v":0},null,null,null,null,"人",null,null,null,"従人",null,null,null,{"$f":"$BT$24","v":0},null,null,null,"人",null,"従人",null,null,null,{"$f":"$CD$24","v":0},null,null,null,"人",null,{"$f":"$CJ$24","v":0},null,null,null,"内",null,{"$f":"$CP$24","v":0},null,null,null,"人",null,{"$f":"$CV$24","v":0},null,null,null,null,"人",null,{"$f":"$DC$24","v":0},null,null,null,null,null,null,"人",null,null,null,null,null,null,null,null,null,null,null,null,null,null,"有",null,null,null,null,null,"従有",null,null,null,null,null,null,null,null,{"$f":"$S$24","v":0},null,null,null,null,null,null,null,null,null,null,null,null,null,null,null,null,null,null,null,null,"円",null,{"$f":"$AP$24","v":0},null,null,null,null,"人",null,"従人",null,null,null,"内",null,null,null,null,null,{"$f":"$BG$24","v":0},null,null,null,null,"人",null,null,null,"従人",null,null,null,{"$f":"$BT$24","v":0},null,null,null,"人",null,"従人",null,null,null,{"$f":"$CD$24","v":0},null,null,null,"人",null,{"$f":"$CJ$24","v":0},null,null,null,"内",null,{"$f":"$CP$24","v":0},null,null,null,"人",null,{"$f":"$CV$24","v":0},null,null,null,null,"人",null,{"$f":"$DC$24","v":0},null,null,null,null,null,null,"人"]
[null,null,null,{"$f":"$J$25","v":0},null,null,null,null,null,{"$f":"$J$25","v":0},null,null,null,null,null,{"$f":"$P$25","v":0},null,null,null,null,null,null,null,null,null,null,null,null,null,null,null,null,null,null,null,null,null,null,null,null,null,null,null,null,null,null,null,null,{"$f":"$AW$25","v":0},null,null,null,{"$f":"$BA$25","v":0},null,null,null,null,null,null,null,null,null,null,null,null,null,null,{"$f":"$BP$25","v":0},null,null,null,null,null,null,null,null,null,{"$f":"$BZ$25","v":0},null,null,null,null,null,null,null,null,null,null,null,null,null,null,null,null,null,null,null,null,null,null,null,null,null,null,null,null,null,null,null,null,null,null,null,null,null,null,null,null,null,null,null,null,null,null,null,null,null,null,{"$f":"$J$25","v":0},null,null,null,null,null,{"$f":"$J$25","v":0},null,null,null,null,null,{"$f":"$P$25","v":0},null,null,null,null,null,null,null,null,null,null,null,null,null,null,null,null,null,null,null,null,null,null,null,null,null,null,null,null,null,null,null,null,{"$f":"$AW$25","v":0},null,null,null,{"$f":"$BA$25","v":0},null,null,null,null,null,null,null,null,null,null,null,null,null,null,{"$f":"$BP$25","v":0},null,null,null,null,null,null,null,null,null,{"$f":"$BZ$25","v":0}]
[]
[]
[null,null,null,"社会保険料等の金額",null,null,null,null,null,null,null,null,null,null,null,null,null,null,null,null,null,null,null,null,null,null,null,null,null,null,null,"生命保険料の控除額",null,null,null,null,null,null,null,null,null,null,null,null,null,null,null,null,null,null,null,null,null,null,null,null,null,null,null,"地震保険料の控除額",null,null,null,null,null,null,null,null,null,null,null,null,null,null,null,null,null,null,null,null,null,null,null,null,null,null,null,"住宅借入金等特別控除の額",null,null,null,null,null,null,null,null,null,null,null,null,null,null,null,null,null,null,null,null,null,null,null,null,null,null,null,null,null,null,null,null,null,null,null,null,null,null,null,null,"社会保険料等の金額",null,null,null,null,null,null,null,null,null,null,null,null,null,null,null,null,null,null,null,null,null,null,null,null,null,null,null,"生命保険料の控除額",null,null,null,null,null,null,null,null,null,null,null,null,null,null,null,null,null,null,null,null,null,null,null,null,null,null,null,"地震保険料の控除額",null,null,null,null,null,null,null,null,null,null,null,null,null,null,null,null,null,null,null,null,null,null,null,null,null,null,null,"住宅借入金等特別控除の額"]
[]
[null,null,null,"内",null,null,{"$f":"$G$30","v":0},null,null,null,null,null,null,null,null,null,null,null,null,null,null,null,null,null,null,null,null,null,null,"円",null,{"$f":"$AF$30","v":0},null,null,null,null,null,null,null,null,null,null,null,null,null,null,null,null,null,null,null,null,null,null,null,null,null,"円",null,{"$f":"$BH$30","v":0},null,null,null,null,null,null,null,null,null,null,null,null,null,null,null,null,null,null,null,null,null,null,null,null,null,"円",null,{"$f":"$CJ$30","v":0},null,null,null,null,null,null,null,null,null,null,null,null,null,null,null,null,null,null,null,null,null,null,null,null,null,"円",null,null,null,null,null,null,null,null,null,null,null,null,null,null,"内",null,null,{"$f":"$G$30","v":0},null,null,null,null,null,null,null,null,null,null,null,null,null,null,null,null,null,null,null,null,null,null,"円",null,{"$f":"$AF$30","v":0},null,null,null,null,null,null,null,null,null,null,null,null,null,null,null,null,null,null,null,null,null,null,null,null,null,"円",null,{"$f":"$BH$30","v":0},null,null,null,null,null,null,null,null,null,null,null,null,null,null,null,null,null,null,null,null,null,null,null,null,null,"円",null,{"$f":"$CJ$30","v":0},null,null,null,null,null,null,null,null,null,null,null,null,null,null,null,null,null,null,null,null,null,null,null,null,null,"円"]
[null,null,null,null,null,{"$f":"$F$31","v":0},null,null,null,null,null,null,null,null,null,null,null,null,null,null,null,null,null,null,null,null,null,null,null,null,null,null,null,null,null,null,null,null,null,null,null,null,null,null,null,null,null,null,null,null,null,null,null,null,null,null,null,null,null,null,null,null,null,null,null,null,null,null,null,null,null,null,null,null,null,null,null,null,null,null,null,null,null,null,null,null,null,null,null,null,null,null,null,null,null,null,null,null,null,null,null,null,null,null,null,null,null,null,null,null,null,null,null,null,null,null,null,null,null,null,null,null,null,null,null,null,null,null,null,null,{"$f":"$F$31","v":0}]
[]
[null,null,null,"（摘要）",null,null,null,null,null,null,null,null,null,null,null,null,null,null,null,null,null,null,null,null,null,null,null,null,null,null,null,null,null,null,null,null,null,null,null,null,null,null,null,null,null,null,null,null,null,null,null,null,null,null,null,null,null,null,null,null,null,null,null,null,null,null,null,null,null,null,null,null,null,null,null,null,null,null,null,null,null,null,null,null,null,null,null,null,null,null,null,null,null,null,null,null,null,null,null,null,null,null,null,null,null,null,null,null,null,null,null,null,null,null,null,null,null,null,null,null,null,null,null,null,null,null,null,null,"（摘要）"]
[null,null,null,null,null,{"$f":"$F$34","v":0},null,null,null,null,null,null,null,null,null,null,null,null,null,null,null,null,null,null,null,null,null,null,null,null,null,null,null,null,null,null,null,null,null,null,null,null,null,null,null,null,null,null,null,null,null,null,null,null,null,null,null,null,null,null,null,null,null,null,null,null,null,null,null,null,null,null,null,null,null,null,null,null,null,null,null,null,null,null,null,null,null,null,null,null,null,null,null,null,null,null,null,null,null,null,null,null,null,null,null,null,null,null,null,null,null,null,null,null,null,null,null,null,null,null,null,null,null,null,null,null,null,null,null,null,{"$f":"$F$34","v":0}]
[]
[]
[null,null,null,null,null,{"$f":"$F$37","v":0},null,null,null,null,null,null,null,null,null,null,null,null,null,null,null,null,null,null,null,null,null,null,null,null,null,null,null,null,null,null,null,null,null,null,null,null,null,null,null,null,null,null,null,null,null,null,null,null,null,null,null,null,null,null,null,null,null,null,null,null,null,null,null,null,null,null,null,null,null,null,null,null,null,null,null,null,null,null,null,null,null,null,null,null,null,null,null,null,null,null,null,null,null,null,null,null,null,null,null,null,null,null,null,null,null,null,null,null,null,null,null,null,null,null,null,null,null,null,null,null,null,null,null,null,{"$f":"$F$37","v":0}]
[]
[]
[]
[null,null,null,"生命保険料の金額の内訳",null,null,null,null,null,null,null,"新生命保険料の金額",null,null,null,null,null,null,null,null,null,{"$f":"$V$41","v":0},null,null,null,null,null,null,null,null,"円",null,"旧生命保険料の金額",null,null,null,null,null,null,null,null,{"$f":"$AP$41","v":0},null,null,null,null,null,null,null,null,"円",null,"介護医療保険料の金額",null,null,null,null,null,null,null,null,{"$f":"$BJ$41","v":0},null,null,null,null,null,null,null,null,"円",null,"新個人年金保険料の金額",null,null,null,null,null,null,null,{"$f":"$CC$41","v":0},null,null,null,null,null,null,null,null,null,"円",null,"旧個人年金保険料の金額",null,null,null,null,null,null,null,{"$f":"$CW$41","v":0},null,null,null,null,null,null,null,null,null,null,null,null,"円",null,null,null,null,null,null,null,null,null,null,null,null,null,null,"生命保険料の金額の内訳",null,null,null,null,null,null,null,"新生命保険料の金額",null,null,null,null,null,null,null,null,null,{"$f":"$V$41","v":0},null,null,null,null,null,null,null,null,"円",null,"旧生命保険料の金額",null,null,null,null,null,null,null,null,{"$f":"$AP$41","v":0},null,null,null,null,null,null,null,null,"円",null,"介護医療保険料の金額",null,null,null,null,null,null,null,null,{"$f":"$BJ$41","v":0},null,null,null,null,null,null,null,null,"円",null,"新個人年金保険料の金額",null,null,null,null,null,null,null,{"$f":"$CC$41","v":0},null,null,null,null,null,null,null,null,null,"円",null,"旧個人年金保険料の金額",null,null,null,null,null,null,null,{"$f":"$CW$41","v":0},null,null,null,null,null,null,null,null,null,null,null,null,"円"]
[]
[null,null,null,"住宅借入金等特別控除の額の内訳",null,null,null,null,null,null,null,"住宅借入金等特別控除適用数",null,null,null,null,null,null,null,null,null,{"$f":"$V$43","v":0},null,null,null,null,null,null,null,null,null,null,"居住開始年月日（1回目）",null,null,null,null,null,null,null,null,{"$f":"$AP$43","v":0},null,null,null,null,null,"年",null,{"$f":"$AX$43","v":0},null,null,null,null,"月",null,{"$f":"$BE$43","v":0},null,null,null,null,"日",null,"住宅借入金等特別控除区分（1回目）",null,null,null,null,null,null,null,null,null,{"$f":"$BV$43","v":0},null,null,null,null,null,null,"住宅借入金等年末残高（1回目）",null,null,null,null,null,null,null,null,{"$f":"$CL$43","v":0},null,null,null,null,null,null,null,null,null,null,null,null,null,null,null,null,null,null,null,null,null,null,null,"円",null,null,null,null,null,null,null,null,null,null,null,null,null,null,"住宅借入金等特別控除の額の内訳",null,null,null,null,null,null,null,"住宅借入金等特別控除適用数",null,null,null,null,null,null,null,null,null,{"$f":"$V$43","v":0},null,null,null,null,null,null,null,null,null,null,"居住開始年月日（1回目）",null,null,null,null,null,null,null,null,{"$f":"$AP$43","v":0},null,null,null,null,null,"年",null,{"$f":"$AX$43","v":0},null,null,null,null,"月",null,{"$f":"$BE$43","v":0},null,null,null,null,"日",null,"住宅借入金等特別控除区分（1回目）",null,null,null,null,null,null,null,null,null,{"$f":"$BV$43","v":0},null,null,null,null,null,null,"住宅借入金等年末残高（1回目）",null,null,null,null,null,null,null,null,{"$f":"$CL$43","v":0},null,null,null,null,null,null,null,null,null,null,null,null,null,null,null,null,null,null,null,null,null,null,null,"円"]
[]
[null,null,null,null,null,null,null,null,null,null,null,"住宅借入金等特別控除可能額",null,null,null,null,null,null,null,null,null,{"$f":"$V$45","v":0},null,null,null,null,null,null,null,null,"円",null,"居住開始年月日（2回目）",null,null,null,null,null,null,null,null,{"$f":"$AP$45","v":0},null,null,null,null,null,"年",null,{"$f":"$AX$45","v":0},null,null,null,null,"月",null,{"$f":"$BE$45","v":0},null,null,null,null,"日",null,"住宅借入金等特別控除区分（2回目）",null,null,null,null,null,null,null,null,null,{"$f":"$BV$45","v":0},null,null,null,null,null,null,"住宅借入金等年末残高（2回目）",null,null,null,null,null,null,null,null,{"$f":"$CL$45","v":0},null,null,null,null,null,null,null,null,null,null,null,null,null,null,null,null,null,null,null,null,null,null,null,"円",null,null,null,null,null,null,null,null,null,null,null,null,null,null,null,null,null,null,null,null,null,null,"住宅借入金等特別控除可能額",null,null,null,null,null,null,null,null,null,{"$f":"$V$45","v":0},null,null,null,null,null,null,null,null,"円",null,"居住開始年月日（2回目）",null,null,null,null,null,null,null,null,{"$f":"$AP$45","v":0},null,null,null,null,null,"年",null,{"$f":"$AX$45","v":0},null,null,null,null,"月",null,{"$f":"$BE$45","v":0},null,null,null,null,"日",null,"住宅借入金等特別控除区分（2回目）",null,null,null,null,null,null,null,null,null,{"$f":"$BV$45","v":0},null,null,null,null,null,null,"住宅借入金等年末残高（2回目）",null,null,null,null,null,null,null,null,{"$f":"$CL$45","v":0},null,null,null,null,null,null,null,null,null,null,null,null,null,null,null,null,null,null,null,null,null,null,null,"円"]
[]
[null,null,null,"（源泉・特別）\n控除対象\n配偶者",null,null,null,null,null,null,"（フリガナ）",null,null,null,null,null,null,null,null,null,{"$f":"$U$47","v":0},null,null,null,null,null,null,null,null,null,null,null,null,null,null,null,null,null,null,null,null,null,null,"区分",null,{"$f":"$AT$47","v":0},null,null,null,null,"配偶者の\n合計所得",null,null,null,null,null,null,null,null,null,{"$f":"$BI$47","v":0},null,null,null,null,null,null,null,null,"円",null,"国民年金保険料等の金額",null,null,null,null,null,null,null,{"$f":"$CB$47","v":0},null,null,null,null,null,null,null,"円",null,"旧長期損害保険料の金額",null,null,null,null,null,null,null,null,{"$f":"$CU$47","v":0},null,null,null,null,null,null,null,null,null,null,null,null,null,null,"円",null,null,null,null,null,null,null,null,null,null,null,null,null,null,"（源泉・特別）\n控除対象\n配偶者",null,null,null,null,null,null,"（フリガナ）",null,null,null,null,null,null,null,null,null,{"$f":"$U$47","v":0},null,null,null,null,null,null,null,null,null,null,null,null,null,null,null,null,null,null,null,null,null,null,"区分",null,{"$f":"$AT$47","v":0},null,null,null,null,"配偶者の\n合計所得",null,null,null,null,null,null,null,null,null,{"$f":"$BI$47","v":0},null,null,null,null,null,null,null,null,"円",null,"国民年金保険料等の金額",null,null,null,null,null,null,null,{"$f":"$CB$47","v":0},null,null,null,null,null,null,null,"円",null,"旧長期損害保険料の金額",null,null,null,null,null,null,null,null,{"$f":"$CU$47","v":0},null,null,null,null,null,null,null,null,null,null,null,null,null,null,"円"]
[null,null,null,null,null,null,null,null,null,null,"氏　名",null,null,null,null,null,null,null,null,null,{"$f":"$U$48","v":0},null,null,null,null,null,null,null,null,null,null,null,null,null,null,null,null,null,null,null,null,null,null,null,null,null,null,null,null,null,null,null,null,null,null,null,null,null,null,null,null,null,null,null,null,null,null,null,null,null,null,null,null,null,null,null,null,null,null,null,null,null,null,null,null,null,null,null,null,null,null,null,null,null,null,null,null,null,null,null,null,null,null,null,null,null,null,null,null,null,null,null,null,null,null,null,null,null,null,null,null,null,null,null,null,null,null,null,null,null,null,null,null,null,null,"氏　名",null,null,null,null,null,null,null,null,null,{"$f":"$U$48","v":0}]
[null,null,null,null,null,null,null,null,null,null,null,null,null,null,null,null,null,null,null,null,null,null,null,null,null,null,null,null,null,null,null,null,null,null,null,null,null,null,null,null,null,null,null,null,null,null,null,null,null,null,null,null,null,null,null,null,null,null,null,null,null,null,null,null,null,null,null,null,null,null,null,"基礎控除の額",null,null,null,null,null,null,null,{"$f":"$CB$49","v":0},null,null,null,null,null,null,null,"円",null,"所得金額\n調整控除額",null,null,null,null,null,null,null,null,{"$f":"$CU$49","v":0},null,null,null,null,null,null,null,null,null,null,null,null,null,null,"円",null,null,null,null,null,null,null,null,null,null,null,null,null,null,null,null,null,null,null,null,null,null,null,null,null,null,null,null,null,null,null,null,null,null,null,null,null,null,null,null,null,null,null,null,null,null,null,null,null,null,null,null,null,null,null,null,null,null,null,null,null,null,null,null,null,null,null,null,null,null,null,null,null,null,null,null,null,null,null,null,null,null,"基礎控除の額",null,null,null,null,null,null,null,{"$f":"$CB$49","v":0},null,null,null,null,null,null,null,"円",null,"所得金額\n調整控除額",null,null,null,null,null,null,null,null,{"$f":"$CU$49","v":0},null,null,null,null,null,null,null,null,null,null,null,null,null,null,"円"]
[null,null,null,null,null,null,null,null,null,null,"個人番号",null,null,null,null,null,null,null,null,null,{"$f":"$U$50","v":0},null,null,null,null,null,null,null,null,null,null,null,null,null,null,null,null,null,null,null,null,null,null,null,null,null,null,null,null,null,null,null,null,null,null,null,null,null,null,null,null,null,null,null,null,null,null,null,null,null,null,null,null,null,null,null,null,null,null,null,null,null,null,null,null,null,null,null,null,null,null,null,null,null,null,null,null,null,null,null,null,null,null,null,null,null,null,null,null,null,null,null,null,null,null,null,null,null,null,null,null,null,null,null,null,null,null,null,null,null,null,null,null,null,null,"個人番号"]
[null,null,null,"控除対象扶養親族",null,null,null,1,null,null,"（フリガナ）",null,null,null,null,null,null,null,null,null,{"$f":"$U$51","v":0},null,null,null,null,null,null,null,null,null,null,null,null,null,null,null,null,null,null,null,null,null,null,"区分",null,{"$f":"$AT$51","v":0},null,null,null,null,16,null,null,1,null,null,"（フリガナ）",null,null,null,null,null,null,null,null,null,{"$f":"$BO$51","v":0},null,null,null,null,null,null,null,null,null,null,null,null,null,null,null,null,null,null,null,null,null,null,"区分",null,{"$f":"$CN$51","v":0},null,null,null,null,"（備考）",null,null,null,null,null,null,null,null,null,null,null,null,null,null,null,null,null,null,null,null,null,null,null,null,null,null,null,null,null,null,null,"控除対象扶養親族",null,null,null,1,null,null,"（フリガナ）",null,null,null,null,null,null,null,null,null,{"$f":"$U$51","v":0},null,null,null,null,null,null,null,null,null,null,null,null,null,null,null,null,null,null,null,null,null,null,"区分",null,{"$f":"$AT$51","v":0},null,null,null,null,16,null,null,1,null,null,"（フリガナ）",null,null,null,null,null,null,null,null,null,{"$f":"$BO$51","v":0},null,null,null,null,null,null,null,null,null,null,null,null,null,null,null,null,null,null,null,null,null,null,"区分",null,{"$f":"$CN$51","v":0}]
[null,null,null,null,null,null,null,null,null,null,"氏　名",null,null,null,null,null,null,null,null,null,{"$f":"$U$52","v":0},null,null,null,null,null,null,null,null,null,null,null,null,null,null,null,null,null,null,null,null,null,null,null,null,null,null,null,null,null,null,null,null,null,null,null,"氏　名",null,null,null,null,null,null,null,null,null,{"$f":"$BO$52","v":0},null,null,null,null,null,null,null,null,null,null,null,null,null,null,null,null,null,null,null,null,null,null,null,null,null,null,null,null,null,null,null,null,null,null,null,null,null,null,null,null,null,null,null,null,null,null,null,null,null,null,null,null,null,null,null,null,null,null,null,null,null,null,null,null,null,null,null,null,"氏　名",null,null,null,null,null,null,null,null,null,{"$f":"$U$52","v":0},null,null,null,null,null,null,null,null,null,null,null,null,null,null,null,null,null,null,null,null,null,null,null,null,null,null,null,null,null,null,null,null,null,null,null,"氏　名",null,null,null,null,null,null,null,null,null,{"$f":"$BO$52","v":0}]
[null,null,null,null,null,null,null,null,null,null,"個人番号",null,null,null,null,null,null,null,null,null,{"$f":"$U$53","v":0},null,null,null,null,null,null,null,null,null,null,null,null,null,null,null,null,null,null,null,null,null,null,null,null,null,null,null,null,null,"歳未満の扶養親族",null,null,null,null,null,"個人番号",null,null,null,null,null,null,null,null,null,null,null,null,null,null,null,null,null,null,null,null,null,null,null,null,null,null,null,null,null,null,null,null,null,null,null,null,null,null,null,null,null,null,null,null,null,null,null,null,null,null,null,null,null,null,null,null,null,null,null,null,null,null,null,null,null,null,null,null,null,null,null,null,null,null,null,null,null,null,"個人番号",null,null,null,null,null,null,null,null,null,null,null,null,null,null,null,null,null,null,null,null,null,null,null,null,null,null,null,null,null,null,null,null,null,null,null,null,null,null,null,"歳未満の扶養親族",null,null,null,null,null,"個人番号"]
[null,null,null,null,null,null,null,2,null,null,"（フリガナ）",null,null,null,null,null,null,null,null,null,{"$f":"$U$54","v":0},null,null,null,null,null,null,null,null,null,null,null,null,null,null,null,null,null,null,null,null,null,null,"区分",null,{"$f":"$AT$54","v":0},null,null,null,null,null,null,null,2,null,null,"（フリガナ）",null,null,null,null,null,null,null,null,null,{"$f":"$BO$54","v":0},null,null,null,null,null,null,null,null,null,null,null,null,null,null,null,null,null,null,null,null,null,null,"区分",null,{"$f":"$CN$54","v":0},null,null,null,null,null,null,null,null,null,null,null,null,null,null,null,null,null,null,null,null,null,null,null,null,null,null,null,null,null,null,null,null,null,null,null,null,null,null,null,null,2,null,null,"（フリガナ）",null,null,null,null,null,null,null,null,null,{"$f":"$U$54","v":0},null,null,null,null,null,null,null,null,null,null,null,null,null,null,null,null,null,null,null,null,null,null,"区分",null,{"$f":"$AT$54","v":0},null,null,null,null,null,null,null,2,null,null,"（フリガナ）",null,null,null,null,null,null,null,null,null,{"$f":"$BO$54","v":0},null,null,null,null,null,null,null,null,null,null,null,null,null,null,null,null,null,null,null,null,null,null,"区分",null,{"$f":"$CN$54","v":0}]
[null,null,null,null,null,null,null,null,null,null,"氏　名",null,null,null,null,null,null,null,null,null,{"$f":"$U$55","v":0},null,null,null,null,null,null,null,null,null,null,null,null,null,null,null,null,null,null,null,null,null,null,null,null,null,null,null,null,null,null,null,null,null,null,null,"氏　名",null,null,null,null,null,null,null,null,null,{"$f":"$BO$55","v":0},null,null,null,null,null,null,null,null,null,null,null,null,null,null,null,null,null,null,null,null,null,null,null,null,null,null,null,null,null,null,null,null,null,null,null,null,null,null,null,null,null,null,null,null,null,null,null,null,null,null,null,null,null,null,null,null,null,null,null,null,null,null,null,null,null,null,null,null,"氏　名",null,null,null,null,null,null,null,null,null,{"$f":"$U$55","v":0},null,null,null,null,null,null,null,null,null,null,null,null,null,null,null,null,null,null,null,null,null,null,null,null,null,null,null,null,null,null,null,null,null,null,null,"氏　名",null,null,null,null,null,null,null,null,null,{"$f":"$BO$55","v":0}]
[null,null,null,null,null,null,null,null,null,null,"個人番号",null,null,null,null,null,null,null,null,null,{"$f":"$U$56","v":0},null,null,null,null,null,null,null,null,null,null,null,null,null,null,null,null,null,null,null,null,null,null,null,null,null,null,null,null,null,null,null,null,null,null,null,"個人番号",null,null,null,null,null,null,null,null,null,null,null,null,null,null,null,null,null,null,null,null,null,null,null,null,null,null,null,null,null,null,null,null,null,null,null,null,null,null,null,null,null,null,null,null,null,null,null,null,null,null,null,null,null,null,null,null,null,null,null,null,null,null,null,null,null,null,null,null,null,null,null,null,null,null,null,null,null,null,"個人番号",null,null,null,null,null,null,null,null,null,null,null,null,null,null,null,null,null,null,null,null,null,null,null,null,null,null,null,null,null,null,null,null,null,null,null,null,null,null,null,null,null,null,null,null,null,"個人番号"]
[null,null,null,null,null,null,null,3,null,null,"（フリガナ）",null,null,null,null,null,null,null,null,null,{"$f":"$U$57","v":0},null,null,null,null,null,null,null,null,null,null,null,null,null,null,null,null,null,null,null,null,null,null,"区分",null,{"$f":"$AT$57","v":0},null,null,null,null,null,null,null,3,null,null,"（フリガナ）",null,null,null,null,null,null,null,null,null,{"$f":"$BO$57","v":0},null,null,null,null,null,null,null,null,null,null,null,null,null,null,null,null,null,null,null,null,null,null,"区分",null,{"$f":"$CN$57","v":0},null,null,null,null,null,null,null,null,null,null,null,null,null,null,null,null,null,null,null,null,null,null,null,null,null,null,null,null,null,null,null,null,null,null,null,null,null,null,null,null,3,null,null,"（フリガナ）",null,null,null,null,null,null,null,null,null,{"$f":"$U$57","v":0},null,null,null,null,null,null,null,null,null,null,null,null,null,null,null,null,null,null,null,null,null,null,"区分",null,{"$f":"$AT$57","v":0},null,null,null,null,null,null,null,3,null,null,"（フリガナ）",null,null,null,null,null,null,null,null,null,{"$f":"$BO$57","v":0},null,null,null,null,null,null,null,null,null,null,null,null,null,null,null,null,null,null,null,null,null,null,"区分",null,{"$f":"$CN$57","v":0}]
[null,null,null,null,null,null,null,null,null,null,"氏　名",null,null,null,null,null,null,null,null,null,{"$f":"$U$58","v":0},null,null,null,null,null,null,null,null,null,null,null,null,null,null,null,null,null,null,null,null,null,null,null,null,null,null,null,null,null,null,null,null,null,null,null,"氏　名",null,null,null,null,null,null,null,null,null,{"$f":"$BO$58","v":0},null,null,null,null,null,null,null,null,null,null,null,null,null,null,null,null,null,null,null,null,null,null,null,null,null,null,null,null,null,null,null,null,null,null,null,null,null,null,null,null,null,null,null,null,null,null,null,null,null,null,null,null,null,null,null,null,null,null,null,null,null,null,null,null,null,null,null,null,"氏　名",null,null,null,null,null,null,null,null,null,{"$f":"$U$58","v":0},null,null,null,null,null,null,null,null,null,null,null,null,null,null,null,null,null,null,null,null,null,null,null,null,null,null,null,null,null,null,null,null,null,null,null,"氏　名",null,null,null,null,null,null,null,null,null,{"$f":"$BO$58","v":0}]
[null,null,null,null,null,null,null,null,null,null,"個人番号",null,null,null,null,null,null,null,null,null,{"$f":"$U$59","v":0},null,null,null,null,null,null,null,null,null,null,null,null,null,null,null,null,null,null,null,null,null,null,null,null,null,null,null,null,null,null,null,null,null,null,null,"個人番号",null,null,null,null,null,null,null,null,null,null,null,null,null,null,null,null,null,null,null,null,null,null,null,null,null,null,null,null,null,null,null,null,null,null,null,null,null,null,null,null,null,null,null,null,null,null,null,null,null,null,null,null,null,null,null,null,null,null,null,null,null,null,null,null,null,null,null,null,null,null,null,null,null,null,null,null,null,null,"個人番号",null,null,null,null,null,null,null,null,null,null,null,null,null,null,null,null,null,null,null,null,null,null,null,null,null,null,null,null,null,null,null,null,null,null,null,null,null,null,null,null,null,null,null,null,null,"個人番号"]
[null,null,null,null,null,null,null,4,null,null,"（フリガナ）",null,null,null,null,null,null,null,null,null,{"$f":"$U$60","v":0},null,null,null,null,null,null,null,null,null,null,null,null,null,null,null,null,null,null,null,null,null,null,"区分",null,{"$f":"$AT$60","v":0},null,null,null,null,null,null,null,4,null,null,"（フリガナ）",null,null,null,null,null,null,null,null,null,{"$f":"$BO$60","v":0},null,null,null,null,null,null,null,null,null,null,null,null,null,null,null,null,null,null,null,null,null,null,"区分",null,{"$f":"$CN$60","v":0},null,null,null,null,null,null,null,null,null,null,null,null,null,null,null,null,null,null,null,null,null,null,null,null,null,null,null,null,null,null,null,null,null,null,null,null,null,null,null,null,4,null,null,"（フリガナ）",null,null,null,null,null,null,null,null,null,{"$f":"$U$60","v":0},null,null,null,null,null,null,null,null,null,null,null,null,null,null,null,null,null,null,null,null,null,null,"区分",null,{"$f":"$AT$60","v":0},null,null,null,null,null,null,null,4,null,null,"（フリガナ）",null,null,null,null,null,null,null,null,null,{"$f":"$BO$60","v":0},null,null,null,null,null,null,null,null,null,null,null,null,null,null,null,null,null,null,null,null,null,null,"区分",null,{"$f":"$CN$60","v":0}]
[null,null,null,null,null,null,null,null,null,null,"氏　名",null,null,null,null,null,null,null,null,null,{"$f":"$U$61","v":0},null,null,null,null,null,null,null,null,null,null,null,null,null,null,null,null,null,null,null,null,null,null,null,null,null,null,null,null,null,null,null,null,null,null,null,"氏　名",null,null,null,null,null,null,null,null,null,{"$f":"$BO$61","v":0},null,null,null,null,null,null,null,null,null,null,null,null,null,null,null,null,null,null,null,null,null,null,null,null,null,null,null,null,null,null,null,null,null,null,null,null,null,null,null,null,null,null,null,null,null,null,null,null,null,null,null,null,null,null,null,null,null,null,null,null,null,null,null,null,null,null,null,null,"氏　名",null,null,null,null,null,null,null,null,null,{"$f":"$U$61","v":0},null,null,null,null,null,null,null,null,null,null,null,null,null,null,null,null,null,null,null,null,null,null,null,null,null,null,null,null,null,null,null,null,null,null,null,"氏　名",null,null,null,null,null,null,null,null,null,{"$f":"$BO$61","v":0}]
[null,null,null,null,null,null,null,null,null,null,"個人番号",null,null,null,null,null,null,null,null,null,{"$f":"$U$62","v":0},null,null,null,null,null,null,null,null,null,null,null,null,null,null,null,null,null,null,null,null,null,null,null,null,null,null,null,null,null,null,null,null,null,null,null,"個人番号",null,null,null,null,null,null,null,null,null,null,null,null,null,null,null,null,null,null,null,null,null,null,null,null,null,null,null,null,null,null,null,null,null,null,null,null,null,null,null,null,null,null,null,null,null,null,null,null,null,null,null,null,null,null,null,null,null,null,null,null,null,null,null,null,null,null,null,null,null,null,null,null,null,null,null,null,null,null,"個人番号",null,null,null,null,null,null,null,null,null,null,null,null,null,null,null,null,null,null,null,null,null,null,null,null,null,null,null,null,null,null,null,null,null,null,null,null,null,null,null,null,null,null,null,null,null,"個人番号"]
[null,null,null,"未成年者",null,null,null,null,"外国人",null,null,null,"死亡退職",null,null,null,"災害者",null,null,null,"乙　欄",null,null,null,null,"本人が障害者",null,null,null,null,null,null,null,null,null,"寡婦",null,null,null,null,"ひとり親",null,null,null,null,null,"勤労学生",null,null,null,null,null,null,null,null,"中  途  就  ・  退  職",null,null,null,null,null,null,null,null,null,null,null,null,null,null,null,null,null,null,null,null,null,null,null,null,"受  給  者  生  年  月  日",null,null,null,null,null,null,null,null,null,null,null,null,null,null,null,null,null,null,null,null,null,null,null,null,null,null,null,null,null,null,null,null,null,null,null,null,null,null,null,null,null,null,null,null,null,null,null,"未成年者",null,null,null,null,"外国人",null,null,null,"死亡退職",null,null,null,"災害者",null,null,null,"乙　欄",null,null,null,null,"本人が障害者",null,null,null,null,null,null,null,null,null,"寡婦",null,null,null,null,"ひとり親",null,null,null,null,null,"勤労学生",null,null,null,null,null,null,null,null,"中  途  就  ・  退  職",null,null,null,null,null,null,null,null,null,null,null,null,null,null,null,null,null,null,null,null,null,null,null,null,"受  給  者  生  年  月  日"]
[]
[]
[null,null,null,null,null,null,null,null,null,null,null,null,null,null,null,null,null,null,null,null,null,null,null,null,null,"特別",null,null,null,null,"その他",null,null,null,null,null,null,null,null,null,null,null,null,null,null,null,null,null,null,null,null,null,null,null,null,null,null,null,null,null,null,null,null,null,null,null,null,null,null,null,null,null,null,null,null,null,null,null,null,null,null,null,null,null,null,null,null,null,null,null,null,null,null,null,null,null,null,null,null,null,null,null,null,null,null,null,null,null,null,null,null,null,null,null,null,null,null,null,null,null,null,null,null,null,null,null,null,null,null,null,null,null,null,null,null,null,null,null,null,null,null,null,null,null,null,null,null,null,null,null,"特別",null,null,null,null,"その他"]
[]
[null,null,null,null,null,null,null,null,null,null,null,null,null,null,null,null,null,null,null,null,null,null,null,null,null,null,null,null,null,null,null,null,null,null,null,null,null,null,null,null,null,null,null,null,null,null,null,null,null,null,null,null,null,null,null,"就職",null,null,null,null,"退職",null,null,null,null,"年",null,null,null,null,"月",null,null,null,null,"日",null,null,null,null,"元号",null,null,null,null,null,null,null,null,null,null,null,null,null,null,null,null,null,null,null,"年",null,null,null,null,"月",null,null,null,null,"日",null,null,null,null,null,null,null,null,null,null,null,null,null,null,null,null,null,null,null,null,null,null,null,null,null,null,null,null,null,null,null,null,null,null,null,null,null,null,null,null,null,null,null,null,null,null,null,null,null,null,null,null,null,null,null,null,null,null,null,null,null,null,null,null,null,null,null,null,null,"就職",null,null,null,null,"退職",null,null,null,null,"年",null,null,null,null,"月",null,null,null,null,"日",null,null,null,null,"元号",null,null,null,null,null,null,null,null,null,null,null,null,null,null,null,null,null,null,null,"年",null,null,null,null,"月",null,null,null,null,"日"]
[]
[]
[]
[null,null,null,{"$f":"$D$72","v":0},null,null,null,null,{"$f":"$I$72","v":0},null,null,null,{"$f":"$M$72","v":0},null,null,null,{"$f":"$Q$72","v":0},null,null,null,{"$f":"$U$72","v":0},null,null,null,null,{"$f":"$Z$72","v":0},null,null,null,null,{"$f":"$AE$72","v":0},null,null,null,null,{"$f":"$AJ$72","v":0},null,null,null,null,{"$f":"$AO$72","v":0},null,null,null,null,{"$f":"$AT$72","v":0},null,null,null,null,null,null,null,null,null,{"$f":"$BD$72","v":0},null,null,null,null,{"$f":"$BI$72","v":0},null,null,null,null,{"$f":"$BN$72","v":0},null,null,null,null,{"$f":"$BS$72","v":0},null,null,null,null,{"$f":"$BX$72","v":0},null,null,null,null,{"$f":"$CC$72","v":0},null,null,null,null,null,null,null,null,null,null,null,null,null,null,null,null,null,null,null,{"$f":"$CW$72","v":0},null,null,null,null,{"$f":"$DB$72","v":0},null,null,null,null,{"$f":"$DG$72","v":0},null,null,null,null,null,null,null,null,null,null,null,null,null,null,null,null,null,{"$f":"$D$72","v":0},null,null,null,null,{"$f":"$I$72","v":0},null,null,null,{"$f":"$M$72","v":0},null,null,null,{"$f":"$Q$72","v":0},null,null,null,{"$f":"$U$72","v":0},null,null,null,null,{"$f":"$Z$72","v":0},null,null,null,null,{"$f":"$AE$72","v":0},null,null,null,null,{"$f":"$AJ$72","v":0},null,null,null,null,{"$f":"$AO$72","v":0},null,null,null,null,{"$f":"$AT$72","v":0},null,null,null,null,null,null,null,null,null,{"$f":"$BD$72","v":0},null,null,null,null,{"$f":"$BI$72","v":0},null,null,null,null,{"$f":"$BN$72","v":0},null,null,null,null,{"$f":"$BS$72","v":0},null,null,null,null,{"$f":"$BX$72","v":0},null,null,null,null,{"$f":"$CC$72","v":0},null,null,null,null,null,null,null,null,null,null,null,null,null,null,null,null,null,null,null,{"$f":"$CW$72","v":0},null,null,null,null,{"$f":"$DB$72","v":0},null,null,null,null,{"$f":"$DG$72","v":0}]
[]
[]
[]
[null,"（税務署提出用）",null,"支払者",null,null,null,null,"個人番号又は\n法人番号",null,null,null,null,null,null,null,null,null,null,null,{"$f":"$U$76","v":0},null,null,null,null,null,null,null,null,null,null,null,null,null,null,null,null,null,null,null,null,null,null,null,null,null,null,null,null,null,null,null,null,"（支払者の法人番号13桁、個人事業主の場合は個人番号12桁を記載してください。）",null,null,null,null,null,null,null,null,null,null,null,null,null,null,null,null,null,null,null,null,null,null,null,null,null,null,null,null,null,null,null,null,null,null,null,null,null,null,null,null,null,null,null,null,null,null,null,null,null,null,null,null,null,null,null,null,null,null,null,null,null,null,null,null,null,null,null,null,null,null,null,null,"（受給者交付用）",null,"支払者"]
[]
[null,null,null,null,null,null,null,null,"住所（居所）又は所在地",null,null,null,null,null,null,null,null,null,null,null,null,{"$f":"$V$78","v":0},null,null,null,null,null,null,null,null,null,null,null,null,null,null,null,null,null,null,null,null,null,null,null,null,null,null,null,null,null,null,null,null,null,null,null,null,null,null,null,null,null,null,null,null,null,null,null,null,null,null,null,null,null,null,null,null,null,null,null,null,null,null,null,null,null,null,null,null,null,null,null,null,null,null,null,null,null,null,null,null,null,null,null,null,null,null,null,null,null,null,null,null,null,null,null,null,null,null,null,null,null,null,null,null,null,null,null,null,null,null,null,"住所（居所）又は所在地",null,null,null,null,null,null,null,null,null,null,null,null,{"$f":"$V$78","v":0}]
[]
[]
[null,null,null,null,null,null,null,null,"氏名又は名称",null,null,null,null,null,null,null,null,null,null,null,null,{"$f":"$V$81","v":0},null,null,null,null,null,null,null,null,null,null,null,null,null,null,null,null,null,null,null,null,null,null,null,null,null,null,null,null,null,null,null,null,null,null,null,null,null,null,null,null,null,null,null,null,null,null,null,null,null,null,null,null,null,null,null,null,null,null,null,null,null,null,null,null,null,null,null,null,null,null,null,null,null,null,null,null,null,null,null,null,null,null,null,null,null,null,null,null,null,null,null,null,null,null,null,null,null,null,null,null,null,null,null,null,null,null,null,null,null,null,null,"氏名又は名称",null,null,null,null,null,null,null,null,null,null,null,null,{"$f":"$V$81","v":0}]
[null,null,null,null,null,null,null,null,null,null,null,null,null,null,null,null,null,null,null,null,null,null,null,null,null,null,null,null,null,null,null,null,null,null,null,null,null,null,null,null,null,null,null,null,null,null,null,null,null,null,null,null,null,null,null,null,null,null,null,null,null,null,null,null,null,null,null,null,null,null,null,null,null,null,null,null,null,null,null,null,null,null,null,null,null,null,null,"（電話）",null,null,null,null,null,{"$f":"$CP$82","v":0},null,null,null,null,null,null,null,null,null,null,null,null,null,null,null,null,null,null,null,null,null,null,null,null,null,null,null,null,null,null,null,null,null,null,null,null,null,null,null,null,null,null,null,null,null,null,null,null,null,null,null,null,null,null,null,null,null,null,null,null,null,null,null,null,null,null,null,null,null,null,null,null,null,null,null,null,null,null,null,null,null,null,null,null,null,null,null,null,null,null,null,null,null,null,null,null,null,null,null,null,null,null,null,null,null,null,null,null,null,null,null,null,null,null,null,null,null,null,"（電話）",null,null,null,null,null,{"$f":"$CP$82","v":0}]
[]
[null,null,null,"署　番　号",null,null,null,null,null,null,null,null,null,null,null,null,null,null,null,null,null,null,null,null,null,null,null,null,null,null,null,null,null,null,null,null,null,"整　理　番　号"]